Cogmind - Beta 15 @@@ ROGUE MODE // 2025.09.02 @ 09:19:54 Player: lepire Result: Destroyed by TL-SVU(R) with Subdweller Laser Performance ------------- Evolutions (0) 0 Regions Visited (2) 400 Robots Destroyed (21) 105 Value Destroyed (579) 579 Prototype IDs (0) 0 Alien Tech Used (0) 0 Bonus (0) 0 TOTAL SCORE: 1084 Bonus ------- None Cogmind --------- Core Integrity 0/250 Matter 287/300 Energy 250/250 System Corruption 0% Temperature Cool (6) Movement Walking (120) Location -10/Subcaves Parts ------- > --- POWER (1) -------- Ion Engine > --- PROPULSION (2) --- Aluminum Leg Myomer Leg > --- UTILITY (2) ------ Medium Storage Unit Seismic Detector > --- WEAPON (2) ------- Battle Rifle Battle Rifle > --- INVENTORY (10) --- Light Nuclear Core Wheel Weight Redist. System Armor Integrity Analyzer Phase Shifter Tractor Beam Light Assault Rifle Grenade Launcher Mining Claw Peak State ------------ > --- POWER ------------ Ion Engine > --- PROPULSION ------- Aluminum Leg Myomer Leg > --- UTILITY ---------- Medium Storage Unit Seismic Detector > --- WEAPON ----------- Assault Rifle Battle Rifle > --- INVENTORY -------- Light Nuclear Core Wheel Small Storage Unit Weight Redist. System Armor Integrity Analyzer Phase Shifter Tractor Beam Light Assault Rifle Grenade Launcher Mining Claw [Rating: 16] Favorites ----------- Power Ion Engine Engine Ion Engine Propulsion Aluminum Leg Leg Aluminum Leg Utility Seismic Detector Device Seismic Detector Storage Medium Storage Unit Weapon Light Assault Rifle Energy Gun Small Laser Ballistic Gun Light Assault Rifle Launcher Grenade Launcher Slashing Weapon Mining Claw Build | -11 -10 -10 ------- Run | Yrd Mat Sub Slots Evolved . | . . . Power . | . . . Propulsion . | . . . Utility . | . . . Weapon . | . . . Parts Attached 19 | 5 11 3 Power 1 | 1 . . Engine 1 | 1 . . Core . | . . . Reactor . | . . . Propulsion 7 | 2 4 1 Treads . | . . . Leg 7 | 2 4 1 Wheel . | . . . Hover . | . . . Flight . | . . . Utility 3 | 1 2 . Device 1 | . 1 . Storage 2 | 1 1 . Processor . | . . . Hackware . | . . . Protection . | . . . Artifact . | . . . Weapon 8 | 1 5 2 Energy Gun 1 | . 1 . Energy Cannon . | . . . Ballistic Gun 5 | 1 2 2 Ballistic Cannon . | . . . Launcher 1 | . 1 . Special Weapon . | . . . Impact Weapon . | . . . Slashing Weapon 1 | . 1 . Piercing Weapon . | . . . Special Melee Weapon . | . . . Unidentified Prototypes . | . . . Parts Lost 2 | . . 2 Power . | . . . Propulsion 2 | . . 2 Utility . | . . . Weapon . | . . . Highest Loss Streak 2 | . . 2 To Critical Strikes . | . . . Average Backups 8 | 2 8 9 Power 1 | . 1 1 Propulsion 2 | 1 2 2 Utility 2 | . 2 3 Weapon 1 | . 1 3 Tool/Special . | . . . Unused Backups 10 | . 4 6 Power 3 | . 2 1 Propulsion 2 | . 1 1 Utility 5 | . 1 4 Weapon . | . . . Tool/Special . | . . . Average Slot Usage (%) 96 | . 96 96 Engine 14 | . 14 14 Leg 27 | . 28 24 Device 11 | . 11 14 Storage 14 | . 14 14 Ballistic Gun 26 | . 26 27 Peak Build Rating 16 | 5 8 16 Average Rating 7 | 4 7 9 On Entrance 4 | . 5 8 Naked Turns . | . . . Heaviest Build 20 | 11 20 20 Greatest Support 35 | 20 20 35 Greatest Overweight (x) . | . . . Average Overweight (x) . | . . . Largest Inventory Capacity 10 | 8 10 10 Average Capacity 9 | 7 9 10 Most Carried 10 | 5 10 10 Average Carried 8 | 2 8 9 Final Capacity 10 | 8 10 10 Final Carried 10 | 5 10 9 Class Distribution -------------------- 100% | Mutant Dominant Class ---------------- Mutant | -10/Materials Mutant | -10/Subcaves Resources | -11 -10 -10 ----------- Run | Yrd Mat Sub Matter Collected 694 | 260 263 171 Remotely . | . . . Salvage Created 770 | 88 407 275 Parts 46 | 2 28 16 Haulers Intercepted 1 | . 1 . Recyclers Shooed . | . . . Parts Field Recycled . | . . . Retrieved Matter . | . . . Parts Self-Destructed . | . . . Prevented . | . . . Kills | -11 -10 -10 ------- Run | Yrd Mat Sub Combat Hostiles Destroyed 14 | . 7 7 Guns 9 | . 5 4 AOE 5 | . 2 3 Classes Destroyed 8 | 1 5 2 Hauler 1 | . 1 . Recycler 2 | 1 1 . Operator 1 | . 1 . Watcher 3 | . 3 . Swarmer 2 | . 2 . Grunt 5 | . 5 . Sentry 1 | . . 1 Subdweller 6 | . . 6 Best Kill Streak 6 | 1 4 6 Combat Bots Only 6 | . 3 6 Max Kills in Single Turn 2 | 1 2 2 Gunslinging . | . . . Exploded 2 | . 2 2 Melee . | . . . Uniques/NPCs Destroyed . | . . . Combat | -11 -10 -10 -------- Run | Yrd Mat Sub Hostile Shots Fired 62 | . 37 25 Missed 26 | . 17 9 Hits 36 | . 20 16 Projectile 36 | . 20 16 Critical Strikes 2 | . 2 . Damage Taken 722 | . 306 416 Core 257 | . 57 200 Absorbed by Shields . | . . . Core Remaining (%) 100 | 100 . . Volleys Fired 82 | 10 56 16 Largest 2 | 1 2 2 Hottest 60 | 20 60 50 Shots Fired 154 | 10 112 32 Gun 151 | 10 111 30 Cannon . | . . . Launcher 3 | . 1 2 Special . | . . . Kinetic 147 | 10 107 30 Thermal 4 | . 4 . Explosive 3 | . 1 2 Electromagnetic . | . . . Robot Hit Streak 18 | 5 15 18 Robot Miss Streak 4 | 2 4 1 Penetration Max . | . . . Secondary Targets . | . . . Shots Hit Robots 102 | 7 70 25 Core Hits 45 | 2 27 16 Critical Kills . | . . . Critical Parts Destroyed . | . . . Critical Strikes . | . . . Melee Attacks 5 | . 5 . Impact . | . . . Slashing 5 | . 5 . Piercing . | . . . Sneak Attacks . | . . . Combat Hostiles . | . . . Follow-up Attacks . | . . . Damage Inflicted 1324 | 64 677 583 Guns 951 | 64 599 288 Cannons . | . . . Explosions 373 | . 78 295 Melee . | . . . Ramming . | . . . Kinetic 930 | 64 578 288 Thermal 21 | . 21 . Explosive 373 | . 78 295 Electromagnetic . | . . . Impact . | . . . Slashing . | . . . Piercing . | . . . Highest Corruption . | . . . Average Corruption . | . . . Corruption Purged . | . . . Corruption Blocked . | . . . Overload Shots . | . . . Overflow Damage . | . . . Projectiles . | . . . Explosions . | . . . Melee . | . . . Knockbacks . | . . . Impact . | . . . Kinetic . | . . . Secondary . | . . . Self-Inflicted Damage 105 | . 40 65 Shots 3 | . 1 2 Rammed . | . . . Targets Rammed . | . . . Kicked . | . . . Crushed . | . . . Highest Temperature 40 | . 40 . Average Temperature 13 | . 13 . Received Heat Transfer 270 | . 183 87 Siege Activations . | . . . Martial Activations . | . . . Shielding Activations . | . . . Robots Disrupted . | . . . Combat Hostiles . | . . . Robots Corrupted . | . . . Combat Hostiles . | . . . Parts Fried . | . . . Impact Corruptions . | . . . Robots Melted . | . . . Combat Hostiles . | . . . Parts Melted . | . . . Heat Transferred 50 | . 50 . Parts Sabotaged . | . . . Parts Stolen . | . . . Parts Stripped . | . . . Power Chain Reactions . | . . . Alert | -11 -10 -10 ------- Run | Yrd Mat Sub Maximum Alert Level . | . . . Low Security (%) 100 | 100 100 . Level 1 . | . . . Level 2 . | . . . Level 3 . | . . . Level 4 . | . . . Level 5 . | . . . High Security . | . . . Max Security . | . . . Peak Influence 85 | 5 85 . Initial . | . . . Average 16 | . 19 . Influence Increases 262 | 5 237 20 Destroy 0b10 Robot/C 160 | . 140 20 Destroy 0b10 Robot/NC 35 | 5 30 . Destroy Leader 38 | . 38 . Successful Hack 5 | . 5 . Destroy Structure 9 | . 9 . Lose Combat Pursuer 15 | . 15 . Influence Decreases 242 | 5 176 61 Entered New Map 30 | . . 30 Time Decay 212 | 5 176 31 Squads Dispatched 1 | . 1 . Investigation . | . . . Extermination . | . . . Reinforcement 1 | . 1 . Assault . | . . . Garrison . | . . . Intercept . | . . . Searches Triggered . | . . . Construction Impeded . | . . . Haulers Reinforced . | . . . Active Scanning Responses . | . . . Cargo Convoy Interrupts . | . . . Stealth | -11 -10 -10 --------- Run | Yrd Mat Sub Distress Signals 1 | . 1 . Communications Jammed . | . . . Distress Signals . | . . . Times Spotted 27 | . 16 11 Peak Tracking Total 6 | . 4 6 Tactical Retreats 1 | . 1 . Traps | -11 -10 -10 ------- Run | Yrd Mat Sub Traps Triggered . | . . . Indirectly . | . . . Trap Hack Attempts . | . . . Triggered . | . . . Disarmed . | . . . Reprogrammed . | . . . Reused . | . . . Traps Extracted . | . . . Installed . | . . . Triggered . | . . . Machines | -11 -10 -10 ---------- Run | Yrd Mat Sub Machines Disabled . | . . . Max in Single Turn . | . . . Machines Repaired . | . . . Machines Dismantled . | . . . Machines Sabotaged . | . . . Overloaded Fab Kills . | . . . Hacking | -11 -10 -10 --------- Run | Yrd Mat Sub Machines Accessed 1 | . 1 . Terminals 1 | . 1 . Fabricators . | . . . Repair Stations . | . . . Recycling Units . | . . . Scanalyzers . | . . . Garrison Access . | . . . Total Hacks 1 | . 1 . Successful 1 | . 1 . Failed . | . . . Catastrophic . | . . . Database Lockouts . | . . . Manual . | . . . Terminals 1 | . 1 . Fabricators . | . . . Repair Stations . | . . . Recycling Units . | . . . Scanalyzers . | . . . Garrison Access . | . . . Terminal Hacks 1 | . 1 . Zone Layout 1 | . 1 . Fabricator Hacks . | . . . Repair Station Hacks . | . . . Recycling Unit Hacks . | . . . Scanalyzer . | . . . Garrison Access Hacks . | . . . Unauthorized Hacks . | . . . Terminals . | . . . Fabricators . | . . . Repair Stations . | . . . Recycling Units . | . . . Scanalyzers . | . . . Garrison Access . | . . . Data Cores Recovered . | . . . Used . | . . . Hacking Detections . | . . . Full Trace Events . | . . . Feedback Events . | . . . Feedback Blocked . | . . . Robot Schematics Acquired . | . . . Robots Built . | . . . Authchips . | . . . Time . | . . . Total Robot Build Rating . | . . . Part Schematics Acquired . | . . . Parts Built . | . . . Authchips . | . . . Time . | . . . Total Part Build Rating . | . . . Parts Repaired . | . . . Time . | . . . Parts Recycled . | . . . Recycled Matter . | . . . Retrieved Matter . | . . . Retrieved Components . | . . . Parts Scanalyzed . | . . . Part Schematics Acquired . | . . . Parts Damaged . | . . . Bothacking | -11 -10 -10 ------------ Run | Yrd Mat Sub Used RIF Installer . | . . . Robots Hacked . | . . . Non-combat . | . . . Combat . | . . . Robot Hacks Applied . | . . . Relay Couplers Released . | . . . Fabnet Peak Effective % . | . . . Robots Rewired . | . . . Allies Hacked . | . . . Hacks Repelled . | . . . Allies | -11 -10 -10 -------- Run | Yrd Mat Sub Total Allies . | . . . Largest Group . | . . . Highest-Rated Group . | . . . Highest-Rated Ally . | . . . Total Orders . | . . . Ally Attacks . | . . . Total Damage . | . . . Kills . | . . . Allies Corrupted . | . . . Allies Melted . | . . . Intel | -11 -10 -10 ------- Run | Yrd Mat Sub Active Infowar (turns) 756 | . 583 173 Seismic 756 | . 583 173 Robot Analysis Total . | . . . Derelict Logs Recovered 2 | . . 2 Drone Launches . | . . . Drone Recoveries . | . . . Exploration | -11 -10 -10 ------------- Run | Yrd Mat Sub Turns Passed 986 | 91 722 173 Spaces Moved 579 | 54 429 96 Core 5 | 5 . . Treads . | . . . Legs 574 | 49 429 96 Wheels . | . . . Hover . | . . . Flight . | . . . Fastest Speed 50 | 50 120 120 Average Speed 119 | 113 120 120 Slowest Speed 120 | 120 120 120 Overloaded Moves . | . . . Propulsion Burnouts . | . . . Robots Hopped . | . . . Potential Cave-ins . | . . . Cave-ins Triggered . | . . . Exploration Rate (%) 17 | 5 41 7 Regions Visited 2 Branch Regions 1 Pre-discovered Areas . | . . . Known Exits Taken . | . . . Unknown Exits Taken 2 | 1 1 . Scrap Searched 2 | . . 2 Spaces Dug 1 | . 1 . Terrain Destroyed 20 | . 8 12 Melee 1 | . 1 . Projectile . | . . . AOE 19 | . 7 12 Terrain Rammed . | . . . Walls Destroyed . | . . . Machines Disabled . | . . . Actions | -11 -10 -10 --------- Run | Yrd Mat Sub Total 727 | 73 530 124 Wait 16 | . 16 . Move 577 | 53 428 96 Hop . | . . . Pick Up 13 | 5 6 2 Fast Attach 6 | 5 1 . Attach 3 | . 1 2 Detach . | . . . Swap 16 | . 11 5 Drop 9 | . 6 3 Fire 82 | 10 56 16 Melee 5 | . 5 . Ram . | . . . Kick . | . . . Crush . | . . . Escape Stasis . | . . . Rewire . | . . . Trap . | . . . Miscellaneous . | . . . Route ------- -11/Scrapyard -10/Materials (discovered 2 exits: [*Mat] / [*Sub]) -10/Subcaves History --------- Turn | Location | Event 5 | -11/Scrapyard | Discovered new exit (range 15) 92 | -11/Scrapyard | Entered Materials 309 | -10/Materials | Build established: Mutant 448 | -10/Materials | Discovered new exit (range 7) 714 | -10/Materials | Discovered new exit (range 3) 814 | -10/Materials | Entered Subcaves 832 | -10/Subcaves | Learned 2 Materials zone layouts 904 | -10/Subcaves | Ambushed by swarm of Subdwellers 910 | -10/Subcaves | Ambushed by Subdwellers from Twisted Machinery 921 | -10/Subcaves | Core integrity fell below 50% 933 | -10/Subcaves | Core integrity fell below 20% 987 | -10/Subcaves | Destroyed by TL-SVU(R) with Subdweller Laser Last Messages --------------- 00951_ Dropped Aluminum Leg. 00953_ Acquired Armor Integrity Analyzer. 00954_ Subatomizers dissect the Sub. Power Source. 00955_ Acquired Phase Shifter. 00963_ Acquired 1 matter. 00964_ Subatomizers dissect the Sub. Power Source. 00964_ Acquired 9 matter. 00967_ Dropped Sml. Storage Unit. 00970_ Searching scrap... 00970_ Found Ripper. 00970_ Found 39 Matter. 00973_ Searching scrap... 00973_ Found Scrap Shield. 00973_ Found Sub. Machine Gun. 00973_ Found 41 Matter. 00980_ Acquired Battle Rifle. 00982_ Acquired 3 matter. 00986_ Y-45 Defender destroyed. Map ----- +----------------------------------------------------+ | ?????????????????????????????????????????????????? | | ?????????????????????????????????????????????????? | | ?????????????????????????????????????????????????? | | ?????????????????????????????????????????????????? | | ?????????????????????????????????????????????????? | | ?????????????????????????????????????????????????? | | ?????????????????????????????????????????????????? | | ?????????????????????????????????????????????????? | | ?????????????????????? ??????????????????????????? | | ????????????????????? #??????????????????????????? | | ????????????????????? #??????????????????????????? | | ???????????????????#$ #??????????????????????????? | | ???????????????????$$ #??????????????????????????? | | ??????????????????? ???????????????????????????? | | ??????????????????? %???????????????????????????? | | ???????????????????" ????????????????????????????? | | ???????????????????" ????????????????????????????? | | ??????????????????? ?????????????????????????????? | | ????????????????### ?????????????????????????????? | | ??????????????###[!#####?????????????????????????? | | ??????????????# [%&%= #?????????????????????????? | | ??????????????## !&&==##?????????????????????????? | | ???????????????### /%!##?????????????????????????? | | ??????????????####%R%#]##????#???????????????????? | | ???????????####& =*[&[[ ### # #????????????????? | | ?????????### ] <"< * !@ #????????????????? | | ?????????# * !]!% #???????????????? | | ????????## ## * ## # #???????????????? | | ????????" ## #### #? ## #???????????????? | | ????????## ?# ##?###?# ? ##???????????????? | | ?????????## ??## #?????? ??????????????????? | | ????????## ### #?????? ????????????????? | | ????????# # # ##??????? = ???????????????? | | ????????# ##?????? %! ##??????????????? | | ????????# #?????? = ##???????????????? | | ????????### # #??????? #????????????????? | | ??????????## ##???????# ????????????????? | | ????????### #????????? ???????????????? | | ????????# ##????????? ????????????????? | | ????????# ##??????????????????????????? | | ????????# #??????????????????????????? | | ????????# ####??????????????????????????? | | ????????# ######????????????????????????? | | ????????# ### #????????????????????????? | | ????????####?# ##????????????????????????? | | ????????????## ##?????????????????????????? | | ??????????### ####??????????????????????????? | | ??????????# #####??????????????????????????? | | ??????????## #### ##??##?????????????????????? | | ???????????## #### ### #?????????????????????? | +----------------------------------------------------+ Best States ------------- Heat Dissipation 25 Energy Generation 10 Energy Capacity 250 Matter Stores 300 Matter Capacity 300 Sight Range 16 Terrain Scan Density 10 Evasion (%) 55 Item Schematics ----------------- None Robot Schematics ------------------ None Fabricated ------------ Nothing Repaired ---------- Nothing Alien Tech Used ----------------- None Achievements -------------- None Challenges ------------ None Game ------ Seed GrapheneHybridMiniperforator Manual? 0 Play Time 00:14:32 Cumulative 30.9 hours Start 2025.09.02 @ 09:07:53 End 2025.09.02 @ 09:19:54 Sessions 1 Manual Loads 0 Difficulty Rogue Special Mode None Game No. 38 Rogue 8 Adventurer 30 Explorer 0 Win Type - Total 0 Types 0/0/0/0/0/0/0/0/0/0 Lore% 13 Gallery% 22 Achievement% 21 Wizard Run 0 Options --------- Layout 1 ASCII 0 Keyboard 1 Movement Arrows Keybinds 0 Fullscreen 1 Font 24/Terminus Map View 50x35 Zoom Use 0% Tactical HUD 1 Map Filters NONE Filters NONE Steam 1 RUN: b64489db-b330-4c2a-af75-c327eed64900